bitfinex-derivatives/quotes_BNBF0:USTF0_20250116
["timestamp","ask_amount","ask_price","bid_price","bid_amount"]
[1737043986081,1.04984395,712.5,711.04,1.25373683]
[1737043986272,1.04984395,712.5,711.05,1.25373683]
[1737043986473,1.04984395,712.5,711.06,1.51204382]
[1737043986777,1.04984395,712.5,711.07,1.51204382]
[1737043986978,1.04984395,712.5,711.08,1.51204382]
[1737043987181,1.04984395,712.5,711.09,1.51204382]
[1737043987475,1.04984395,712.5,710.89,0.28133747]
[1737043987476,1.04984395,712.33,711.1,1.51204382]
[1737043987673,1.04984395,712.33,711.11,1.51204382]
[1737043987874,1.04984395,712.33,711.12,1.51204382]
[1737043988074,1.04984395,712.33,711.13,1.25373683]
[1737043988278,1.04984395,712.33,711.14,1.25373683]
[1737043988478,1.04984395,712.36,711.15,1.51201644]
[1737043988680,1.04984395,712.36,711.16,1.51201644]
[1737043988978,1.04984395,712.36,711.17,1.51201644]
[1737043989183,1.04984395,712.36,711.18,1.51201644]
[1737043989480,1.04984395,712.53,711.19,1.51201644]
[1737043989674,1.04984395,712.53,711.2,1.51201644]
[1737043989872,1.04984395,712.53,711.21,1.51201644]
[1737043990080,1.04984395,712.53,711.22,1.51201644]
[1737043990274,1.04984395,712.53,711.23,1.51201644]
[1737043990473,1.04984395,712.53,711.24,1.51201644]
[1737043990676,1.25981274,713.03,710.89,0.28133747]
[1737043990677,1.04984395,712.63,711.25,1.51201644]
[1737043990879,1.04984395,712.63,711.26,1.25373683]
[1737043991083,1.04984395,712.63,711.27,1.5119688]
[1737043991381,1.04984395,712.63,711.28,1.25373683]
[1737043991581,1.04984395,712.58,711.29,1.25373683]
[1737043991784,1.04984395,712.58,711.3,1.25373683]
[1737043992083,1.04984395,712.58,711.31,1.51196551]
[1737043992286,1.04984395,712.58,711.32,1.25373683]
[1737043992582,1.04984395,712.58,710.94,1.03830208]
[1737043992583,1.04984395,712.58,711.33,1.25373683]
[1737043992783,1.04984395,712.58,711.34,1.25373683]
[1737043993077,1.04984395,712.54,711.35,1.25373683]
[1737043993283,1.04984395,712.54,711.36,1.25373683]
[1737043993482,1.04984395,712.54,711.37,1.25373683]
[1737043993782,1.04984395,712.54,711.38,1.25373683]
[1737043993984,1.04984395,712.54,711.39,1.25373683]
[1737043994186,0.28054032,712.91,711.4,1.25373683]
[1737043994187,1.04984395,712.67,711.4,1.25373683]
[1737043994478,1.04984395,712.67,711.41,1.25373683]
[1737043994682,1.04984395,712.67,711.42,1.25394196]
[1737043994881,1.04984395,712.67,711.43,1.25394196]
[1737043995082,1.04984395,712.63,711.44,1.25394196]
[1737043995277,1.04984395,712.63,711.45,1.25394196]
[1737043995482,1.4665084,712.62,711.46,1.25394196]
[1737043995684,1.4665084,712.62,711.47,1.25394196]
[1737043995884,1.4665084,712.62,711.48,1.25394196]
[1737043996085,1.4665084,712.62,710.93,1.03830208]
[1737043996086,1.4665084,712.62,711.49,1.25394196]
[1737043996284,1.4665084,712.62,711.5,1.25394196]
[1737043996481,1.04984395,712.63,711.51,1.25394196]
[1737043996682,1.04984395,712.61,711.52,1.25394196]
[1737043996878,1.04984395,712.61,711.53,1.25394196]
[1737043997082,1.04984395,712.61,711.54,1.25394196]
[1737043997284,1.04984395,712.61,711.55,1.25394196]
[1737043997486,1.04984395,712.61,711.56,1.25394196]
[1737043997783,1.04984395,712.61,711.57,1.25394196]
[1737043997983,1.04984395,712.61,711.58,1.25394196]
[1737043998186,1.04984395,712.49,711.59,1.25394196]
[1737043998383,1.04984395,712.49,711.6,1.25394196]
[1737043998582,1.04984395,712.49,711.61,1.25394196]
[1737043998783,1.04984395,712.49,711.62,1.25394196]
[1737043998983,1.04984395,712.49,711.63,1.25394196]
[1737043999178,1.04984395,712.49,711.64,1.25394196]
[1737043999383,1.04984395,712.45,711.65,1.25394196]
[1737043999581,1.04984395,712.45,711.66,1.25394196]
[1737043999783,1.04984395,712.45,711.67,1.25394196]
[1737044000085,1.04984395,712.45,711.68,1.25394196]
[1737044000284,1.04984395,712.45,711.19,1.03830208]
[1737044000285,1.04984395,712.45,711.69,1.25394196]
[1737044000486,1.04984395,712.45,710.89,0.28133747]
[1737044000487,1.04984395,712.4,711.7,1.25394196]
[1737044000685,1.04984395,712.4,711.71,1.25394196]
[1737044000886,1.04984395,712.4,711.72,1.25394196]
[1737044001186,1.04984395,712.4,711.73,1.25394196]
[1737044001386,0.72202849,712.9,711.2,1.03830208]
[1737044001387,1.04984395,712.39,711.74,1.25394196]
[1737044001586,1.04984395,712.39,711.75,1.25394196]
[1737044001784,1.04984395,712.39,711.2,1.03830208]
[1737044001785,1.04984395,712.39,711.76,1.25394196]
[1737044001985,1.04984395,712.39,711.77,1.25394196]
[1737044002181,1.04984395,712.39,711.78,1.25394196]
[1737044002387,1.04984395,712.38,711.79,1.25394196]
[1737044002584,1.04984395,712.38,711.8,1.25394196]
[1737044002783,1.04984395,712.38,711.81,0.48226657]
[1737044002984,1.04984395,712.38,711.82,0.48226657]
[1737044003180,1.04984395,712.38,711.83,0.48226657]
[1737044003386,1.04984395,712.48,711.84,0.48226657]
[1737044003586,1.04984395,712.48,711.85,0.48226657]
[1737044003786,1.04984395,712.48,711.86,0.48243062]
[1737044003987,1.04984395,712.48,711.11,1.03830208]
[1737044004184,1.04984395,712.48,711.12,1.79388377]
[1737044004392,1.04984395,712.48,711.13,1.51263729]
[1737044004593,1.04984395,712.48,711.14,1.51264002]
[1737044004890,1.04984395,712.46,711.15,1.51264002]
[1737044005090,1.04984395,712.46,711.16,1.51264002]
[1737044005287,1.04984395,712.46,711.17,1.51264002]
[1737044005488,1.04984395,712.46,711.18,1.51264002]
[1737044005790,1.04984395,712.46,711.19,1.51264002]
[1737044005987,1.04984395,712.45,711.2,1.51264002]
[1737044006288,1.04984395,712.45,711.21,1.51264002]
[1737044006489,1.04984395,712.45,711.22,1.51264002]
[1737044006684,1.04984395,712.45,711.23,1.51264002]
[1737044006889,1.04984395,712.45,711.24,1.25440904]
[1737044007189,1.04984395,712.44,711.25,1.25440904]
[1737044007489,1.04984395,712.44,711.26,1.25440904]
[1737044007685,1.04984395,712.44,711.27,1.25440904]
[1737044007883,1.04984395,712.44,711.28,1.25440904]
[1737044008087,1.04984395,712.44,711.29,1.25440904]
[1737044008284,1.04984395,712.35,711.3,1.25440904]
[1737044008483,1.04984395,712.35,711.31,1.25440904]
[1737044008688,1.04984395,712.35,711.32,1.25440904]
[1737044008990,1.04984395,712.35,711.33,1.25440904]
[1737044009190,1.04984395,712.35,711.34,1.25440904]
[1737044009391,1.04984395,712.34,711.35,1.25440904]
[1737044009591,1.04984395,712.34,711.36,1.25440904]
[1737044009890,1.04984395,712.34,711.37,1.25440904]
[1737044010092,1.04984395,712.34,711.38,1.25440904]
[1737044010293,1.04984395,712.34,711.39,1.25440904]
[1737044010494,1.04984395,712.34,711.4,1.25440904]
[1737044010694,1.04984395,712.34,711.41,1.25440904]
[1737044010890,1.04984395,712.34,711.42,1.25440904]
[1737044011096,1.04984395,712.34,711.43,1.25440904]
[1737044011395,1.04984395,712.34,711.44,1.25440904]
[1737044011593,1.04984395,712.34,711.45,1.25440904]
[1737044011790,0.72202849,712.9,711.46,1.25440904]
[1737044011791,1.04984395,712.3,711.46,1.25440904]
[1737044011993,1.04984395,712.3,711.47,1.25440904]
[1737044012190,1.04984395,712.3,711.48,1.25440904]
[1737044012389,1.04984395,712.3,711.49,1.25440904]
[1737044012595,1.04984395,712.3,711.5,1.25440904]
[1737044012793,1.04984395,712.31,711.51,1.25440904]
[1737044013098,1.04984395,712.31,711.52,1.25440904]
[1737044013297,1.04984395,712.31,711.53,1.25440904]
[1737044013488,1.04984395,712.31,711.54,1.25440904]
[1737044013696,1.04984395,712.31,711.55,1.25440904]
[1737044013890,1.04984395,712.3,711.56,1.25440904]
[1737044014095,1.04984395,712.3,711.57,1.25440904]
[1737044014296,1.04984395,712.3,711.58,1.25440904]
[1737044014495,1.04984395,712.3,711.59,1.25440904]
[1737044014692,1.04984395,712.3,711.6,1.25440904]
[1737044014897,1.04984395,712.3,711.61,1.25440904]
[1737044015096,1.25981274,712.82,711.12,0.28124648]
[1737044015097,1.04984395,712.31,711.62,1.25440904]
[1737044015299,1.04984395,712.31,711.63,1.25440904]
[1737044015492,1.04984395,712.31,711.64,1.25440904]
[1737044015691,1.04984395,712.31,711.65,1.25467174]
[1737044015893,1.04984395,712.34,711.66,0.48244621]
[1737044016092,1.04984395,712.34,711.67,0.48244621]
[1737044016297,1.04984395,712.34,711.68,0.48244621]
[1737044016495,1.04984395,712.34,711.69,0.48244621]
[1737044016695,1.04984395,712.34,711.7,0.48244621]
[1737044016895,1.04984395,712.34,711.71,0.48244621]
[1737044017194,1.04984395,712.35,711.72,0.48244621]
[1737044017398,1.04984395,712.35,711.73,0.48244621]
[1737044017593,1.04984395,712.35,711.74,0.48244621]
[1737044017797,1.04984395,712.35,711.12,0.28124648]
[1737044017993,1.04984395,712.35,711.13,1.25498136]
[1737044018194,1.04984395,712.35,711.14,1.25498136]
[1737044018398,1.04984395,712.39,711.15,1.25498136]
[1737044018595,1.04984395,712.39,711.16,1.25498136]
[1737044018793,1.04984395,712.39,711.12,0.28124648]
[1737044018794,1.04984395,712.39,711.17,1.25498136]
[1737044019000,1.04984395,712.39,711.18,1.25498136]
[1737044019200,1.04984395,712.37,711.19,1.25498136]
[1737044019398,1.04984395,712.37,711.2,1.25498136]
[1737044019699,1.04984395,712.37,711.21,1.25498136]
[1737044020002,1.04984395,712.37,711.22,1.25498136]
[1737044020200,1.04984395,712.37,711.23,1.25498136]
[1737044020398,1.04984395,712.37,711.24,1.25498136]
[1737044020599,1.04984395,712.64,711.12,0.28124648]
[1737044020600,1.04984395,712.28,711.25,1.25498136]
[1737044020896,1.04984395,712.28,711.26,1.25498136]
[1737044021102,1.04984395,712.28,711.27,1.25498136]
[1737044021402,1.04984395,712.28,711.28,1.25498136]
[1737044021600,1.04984395,712.28,711.29,1.25498136]
[1737044021801,0.72202849,712.9,711.3,1.25498136]
[1737044021802,1.04984395,712.24,711.3,1.25498136]
[1737044021995,1.04984395,712.24,711.31,1.25498136]
[1737044022197,1.04984395,712.24,711.32,1.25498136]
[1737044022400,1.04984395,712.24,711.33,1.25498136]
[1737044022601,1.04984395,712.24,711.34,1.25498136]
[1737044022794,1.04984395,712.25,711.35,1.25498136]
[1737044023000,1.04984395,712.25,711.36,1.25498136]
[1737044023195,1.04984395,712.25,711.37,1.25498136]
[1737044023497,1.04984395,712.25,711.12,0.28124648]
[1737044023498,1.04984395,712.25,711.38,1.25498136]
[1737044023715,1.04984395,712.25,711.39,1.25498136]
[1737044023899,1.04984395,712.24,711.4,1.25498136]
[1737044024102,1.04984395,712.24,711.41,1.25498136]
[1737044024297,1.04984395,712.24,711.42,1.25498136]
[1737044024501,1.04984395,712.24,711.43,1.25498136]
[1737044024703,1.04984395,712.24,711.44,1.25498136]
[1737044024899,1.04984395,712.24,711.45,1.25498136]
[1737044025207,1.04984395,712.23,711.46,1.25498136]
[1737044025404,1.04984395,712.23,711.47,1.25498136]
[1737044025602,1.04984395,712.23,711.48,1.25498136]
[1737044025806,1.04984395,712.23,711.49,1.25498136]
[1737044026007,1.04984395,712.23,711.5,1.25498136]
[1737044026307,1.04984395,712.23,711.12,0.28124648]
[1737044026308,1.04984395,712.18,711.51,1.25498136]
[1737044026505,1.04984395,712.18,711.52,1.25498136]
[1737044026708,1.04984395,712.18,711.53,1.25498136]
[1737044027006,1.04984395,712.18,711.54,1.25498136]
[1737044027206,1.04984395,712.18,711.12,0.28124648]
[1737044027207,1.04984395,712.19,711.55,1.25498136]
[1737044027406,1.04984395,712.19,711.56,1.25498136]
[1737044027606,1.04984395,712.19,711.57,1.25498136]
[1737044027806,1.04984395,712.19,711.58,1.25498136]
[1737044028007,1.04984395,712.19,711.59,1.25498136]
[1737044028307,1.04984395,712.23,711.6,1.25498136]
[1737044028607,1.04984395,712.23,711.12,0.28124648]
[1737044028608,1.04984395,712.23,711.61,1.25498136]
[1737044028908,1.04984395,712.23,711.62,1.25498136]
[1737044029102,1.04984395,712.23,711.63,0.48266632]
[1737044029308,1.04984395,712.34,711.64,0.48266632]
[1737044029507,1.04984395,712.34,711.65,0.48266632]
[1737044029707,1.04984395,712.34,711.66,0.48266632]
[1737044029907,1.04984395,712.34,711.67,0.48266632]
[1737044030106,1.04984395,712.34,711.68,0.48266632]
[1737044030301,1.04984395,712.34,711.69,0.48266632]
[1737044030508,2.1434314,713.12,711.12,0.28124648]
[1737044030509,1.04984395,712.36,711.7,0.48266632]
[1737044030702,1.04984395,712.36,711.71,0.48266632]
[1737044030902,1.04984395,712.36,711.72,0.48266632]
[1737044031107,1.04984395,712.36,711.12,0.28124648]
[1737044031405,1.04984395,712.38,711.13,1.25753236]
[1737044031600,1.04984395,712.38,711.14,1.25753236]
[1737044031800,0.28075297,712.37,711.15,1.25753236]
[1737044032007,0.28075297,712.37,711.16,1.25753236]
[1737044032205,0.28075297,712.37,711.17,1.25753236]
[1737044032408,0.28075297,712.37,711.18,1.25753236]
[1737044032610,1.04984395,712.33,711.19,1.25753236]
[1737044032909,0.28077268,712.32,711.2,1.25753236]
[1737044033209,0.28077268,712.32,711.21,1.25753236]
[1737044033404,0.28077268,712.32,711.22,1.25753236]
[1737044033604,0.28077268,712.32,711.23,1.25753236]
[1737044033804,1.33061663,712.32,711.24,1.25753236]
[1737044034005,1.33061663,712.32,711.25,1.25753236]
[1737044034203,1.33061663,712.32,711.12,0.28124648]
[1737044034204,1.33061663,712.32,711.26,1.25753236]
[1737044034407,1.33061663,712.32,711.12,0.28124648]
[1737044034408,1.33061663,712.32,711.27,1.25753236]
[1737044034609,1.33061663,712.32,711.28,1.25753236]
[1737044034808,1.33061663,712.32,711.29,1.25753236]
[1737044035005,1.33061663,712.32,711.3,1.25753236]
[1737044035210,1.04984395,712.19,711.31,1.25753236]
[1737044035402,1.04984395,712.19,711.32,1.25753236]
[1737044035608,0.28082788,712.18,711.33,1.25753236]
[1737044035810,0.28082788,712.18,711.34,1.25753236]
[1737044036109,0.28082788,712.18,711.35,1.25753236]
[1737044036310,0.28082788,712.18,711.36,1.25753236]
[1737044036504,0.28082788,712.18,711.37,1.25753236]
[1737044036808,0.28082788,712.18,711.38,1.25753236]
[1737044037009,0.28082788,712.18,711.39,1.25753236]
[1737044037203,0.28082788,712.18,711.4,1.25753236]
[1737044037403,0.28082788,712.18,711.41,0.48364744]
[1737044037602,0.28082788,712.18,711.42,0.48364744]
[1737044037807,0.28082788,712.18,711.43,0.48364744]
[1737044038003,0.28082788,712.18,711.44,0.48364744]
[1737044038206,0.28082788,712.18,711.45,0.48364744]
[1737044038411,0.28082788,712.18,711.46,0.48364744]
[1737044038610,0.28082788,712.18,711.47,0.48364744]
[1737044038806,0.28082788,712.18,711.48,0.48364744]
[1737044039010,0.28082788,712.18,711.49,0.48364744]
[1737044039208,0.28082788,712.18,711.5,0.48364744]
[1737044039407,0.28082788,712.18,711.51,0.48341364]
[1737044039612,0.28082788,712.18,711.52,0.48341364]
[1737044039910,0.28082788,712.18,711.53,0.48341364]
[1737044040110,0.28082788,712.18,710.59,1.03830208]
[1737044040307,0.28082788,712.18,710.6,1.79680978]
[1737044040614,0.28082788,712.18,710.61,2.11039114]
[1737044040812,0.28082788,712.18,710.6,0.28145229]
[1737044040813,0.28082788,712.18,710.62,3.14869322]
[1737044041005,0.28082788,712.18,710.63,2.11039114]
[1737044041312,0.28082788,712.18,710.64,2.11063793]
[1737044041506,0.28082788,712.18,710.63,0.28144041]
[1737044041507,0.28082788,712.18,710.65,1.51560905]
[1737044041714,0.28082788,712.18,710.66,1.51560905]
[1737044041913,0.28082788,712.18,710.67,1.51560905]
[1737044042208,0.28082788,712.18,710.68,1.51560905]
[1737044042411,0.28082788,712.18,710.69,1.51560905]
[1737044042610,0.28082788,712.18,710.7,1.51560905]
[1737044042807,0.28082788,712.18,710.71,1.51560905]
[1737044043009,0.28082788,712.18,710.72,1.51560905]
[1737044043209,0.28082788,712.18,710.63,0.28144041]
[1737044043210,0.28082788,712.18,710.73,1.25723124]
[1737044043412,0.28082788,712.18,710.74,1.25723124]
[1737044043613,0.28082788,712.18,710.75,1.25723124]
[1737044043806,0.28082788,712.18,710.76,1.25723124]
[1737044044013,0.28082788,712.18,710.77,1.25723124]
[1737044044211,0.28082788,712.18,710.78,1.25723124]
[1737044044411,0.28082788,712.18,710.79,1.25723124]
[1737044044614,0.28082788,712.18,710.8,1.25723124]
[1737044044806,0.28082788,712.18,710.81,1.25723124]
[1737044045012,0.28082788,712.18,710.82,1.25723124]
[1737044045211,0.28082788,712.18,710.83,1.25723124]
[1737044045414,0.28082788,712.18,710.84,1.25723124]
[1737044045609,0.28082788,712.18,710.85,1.25723124]
[1737044045813,0.28082788,712.18,710.86,1.25723124]
[1737044046010,0.28082788,712.18,710.87,1.25723124]
[1737044046216,0.28082788,712.18,710.88,1.25723124]
[1737044046514,0.28082788,712.18,710.89,1.25723124]
[1737044046813,0.28082788,712.18,710.9,1.25723124]
[1737044047014,0.28082788,712.18,710.91,1.25723124]
[1737044047316,0.28082788,712.18,710.92,1.25723124]
[1737044047509,0.28082788,712.18,710.93,1.25723124]
[1737044047808,0.28082788,712.18,710.94,1.25723124]
[1737044048015,0.28082788,712.18,710.95,1.25723124]
[1737044048313,0.28082788,712.18,710.96,1.25723124]
[1737044048509,0.28082788,712.18,710.97,1.25723124]
[1737044048813,0.28082788,712.18,710.98,1.25723124]
[1737044049013,0.28082788,712.18,710.99,1.25723124]
[1737044049212,0.28082788,712.18,711.0,1.25723124]
[1737044049419,0.28082788,712.18,711.01,1.25723124]
[1737044049716,0.28082788,712.18,711.02,1.25723124]
[1737044050019,0.28082788,712.18,711.03,1.25723124]
[1737044050311,0.28082788,712.18,711.04,1.25723124]
[1737044050517,0.28082788,712.18,711.05,1.25723124]
[1737044050716,0.28082788,712.18,711.06,1.25723124]
[1737044050915,0.28082788,712.18,711.07,1.25723124]
[1737044051111,0.28082788,712.18,711.08,1.25723124]
[1737044051315,0.28082788,712.18,710.63,0.28144041]
[1737044051316,0.28082788,712.18,711.09,1.25470366]
[1737044051515,0.28082788,712.18,711.1,0.48353163]
[1737044051711,0.28082788,712.18,711.11,0.48353163]
[1737044051912,0.28082788,712.18,711.12,0.48353163]
[1737044052117,0.28082788,712.18,711.13,0.48353163]
[1737044052316,0.28082788,712.18,711.14,0.48353163]
[1737044052517,0.28082788,712.18,711.15,0.48353163]
[1737044052710,0.28082788,712.18,710.63,0.28144041]
[1737044052915,0.28082788,712.18,710.64,1.2530633]
[1737044053115,0.28082788,712.18,710.65,1.2530633]
[1737044053316,0.28082788,712.18,710.66,1.2530633]
[1737044053615,0.28082788,712.18,710.67,1.2530633]
[1737044053921,0.28082788,712.18,710.68,1.2530633]
[1737044054117,0.28082788,712.18,710.69,1.2530633]
[1737044054318,0.28082788,712.18,710.7,1.2530633]
[1737044054511,0.28082788,712.18,710.71,1.2530633]
[1737044054715,0.28082788,712.18,710.72,1.2530633]
[1737044054917,0.28082788,712.18,710.73,1.2530633]
[1737044055118,0.28082788,712.18,710.74,1.2530633]
[1737044055317,0.28082788,712.18,710.75,1.2530633]
[1737044055518,0.28082788,712.18,710.76,1.2530633]
[1737044055818,0.28082788,712.18,710.77,1.2530633]
[1737044056021,0.28082788,712.18,710.78,1.2530633]
[1737044056321,0.28082788,712.18,710.79,1.2530633]
[1737044056521,0.28082788,712.18,710.8,1.2530633]
[1737044056824,0.28082788,712.18,710.81,1.2530633]
[1737044057120,0.28082788,712.18,710.82,1.2530633]
[1737044057314,0.28082788,712.18,710.83,1.2530633]
[1737044057519,0.28082788,712.18,710.84,1.2530633]
[1737044057717,0.28082788,712.18,710.85,1.2530633]
[1737044057920,0.28082788,712.18,710.86,1.2530633]
[1737044058120,0.28082788,712.18,710.63,0.28144041]
[1737044058121,0.28082788,712.18,710.87,1.2530633]
[1737044058317,0.28082788,712.18,710.88,1.2530633]
[1737044058521,0.28082788,712.18,710.89,1.2530633]
[1737044058722,1.04984395,712.12,710.9,1.2530633]
[1737044058918,1.04984395,712.12,710.91,1.2530633]
[1737044059125,1.04984395,712.12,710.92,1.2530633]
[1737044059419,0.28085942,712.1,710.93,1.2530633]
[1737044059626,1.04984395,712.02,710.94,1.2530633]
[1737044059923,1.04984395,712.02,710.95,1.2530633]
[1737044060223,1.04984395,712.02,710.96,1.2530633]
[1737044060524,1.04984395,712.02,710.97,1.2530633]
[1737044060722,1.04984395,712.02,710.63,0.28144041]
[1737044060723,1.04984395,712.02,710.98,1.2530633]
[1737044060923,1.04984395,712.02,710.99,1.2530633]
[1737044061123,1.04984395,712.02,711.0,1.2530633]
[1737044061423,1.04984395,712.02,711.01,1.2530633]
[1737044061625,1.04984395,712.01,711.02,1.2530633]
[1737044061824,1.04984395,712.01,711.03,1.2530633]
[1737044062021,1.04984395,712.01,711.04,1.25072089]
[1737044062225,1.04984395,712.01,710.63,0.28144041]
[1737044062226,1.04984395,712.01,711.05,1.25072089]
[1737044062426,1.04984395,712.01,711.06,1.25072089]
[1737044062627,1.04984395,712.01,711.07,1.25072089]
[1737044062828,0.28085942,712.1,711.08,1.25072089]
[1737044063028,0.28085942,712.1,711.09,1.25072089]
[1737044063229,0.28085942,712.1,711.1,1.25072089]
[1737044063431,0.28085942,712.1,711.11,1.25072089]
[1737044063627,0.28085942,712.1,711.12,1.25072089]
[1737044063927,0.28085942,712.1,711.13,1.25072089]
[1737044064228,0.28085942,712.1,710.63,0.28144041]
[1737044064229,0.28085942,712.1,711.14,1.25072089]
[1737044064423,0.28085942,712.1,711.15,1.25072089]
[1737044064627,0.28085942,712.1,711.16,1.25072089]
[1737044064827,0.28085942,712.1,711.17,1.25072089]
[1737044065128,0.28085942,712.1,711.18,1.25072089]
[1737044065330,0.28085942,712.1,711.19,1.25072089]
[1737044065629,0.28085942,712.1,711.2,1.25072089]
[1737044065830,0.28085942,712.1,711.21,1.25072089]
[1737044066025,0.28085942,712.1,711.22,1.25072089]
[1737044066231,0.28085942,712.1,711.23,1.25072089]
[1737044066524,0.28085942,712.1,711.24,1.25072089]
[1737044066729,0.28085942,712.1,711.25,1.25072089]
[1737044066924,0.28085942,712.1,711.26,1.25072089]
[1737044067129,0.28085942,712.1,711.27,1.25072089]
[1737044067323,0.28085942,712.1,711.28,1.25072089]
[1737044067529,0.28085942,712.1,711.29,1.25072089]
[1737044067725,0.28085942,712.1,711.3,1.25072089]
[1737044067925,0.28085942,712.1,711.31,1.25072089]
[1737044068131,0.28085942,712.1,711.32,1.25072089]
[1737044068332,0.28085942,712.1,711.33,1.25072089]
[1737044068532,0.28085942,712.1,711.34,1.25072089]
[1737044068728,0.28085942,712.1,711.35,1.25072089]
[1737044068934,0.28085942,712.1,711.36,1.25072089]
[1737044069233,0.28085942,712.1,711.37,0.48102771]
[1737044069432,0.28085942,712.1,711.38,0.48102771]
[1737044069634,0.28085942,712.1,711.39,0.48102771]
[1737044069830,0.28085942,712.1,711.4,0.48102771]
[1737044070027,0.28085942,712.1,710.69,1.03830208]
[1737044070028,0.28085942,712.1,711.41,0.48102771]
[1737044070230,0.28085942,712.1,710.69,1.03830208]
[1737044070231,0.28085942,712.1,711.42,0.48102771]
[1737044070433,0.28085942,712.1,711.43,0.48136758]
[1737044070627,0.28085942,712.1,710.69,1.03830208]
[1737044070829,0.28085942,712.1,710.7,2.10470743]
[1737044071036,0.28085942,712.1,710.71,1.51001218]
[1737044071233,0.28085942,712.1,710.72,1.51001218]
[1737044071433,0.28085942,712.1,710.73,1.51001218]
[1737044071633,0.28085942,712.1,710.74,1.51001218]
[1737044071936,0.28085942,712.1,710.75,1.51001218]
[1737044072134,0.28085942,712.1,710.76,1.51001218]
[1737044072330,0.28085942,712.1,710.63,0.28144041]
[1737044072331,0.28085942,712.1,710.77,1.51001667]
[1737044072531,0.28085942,712.1,710.78,1.51001667]
[1737044072733,0.28085942,712.1,710.79,1.51001667]
[1737044072937,0.28085942,712.1,710.8,1.51001667]
[1737044073136,0.28085942,712.1,710.81,1.5100217]
[1737044073337,0.28085942,712.1,710.82,1.5100217]
[1737044073636,0.28085942,712.1,710.83,1.5100217]
[1737044073834,0.28085942,712.1,710.84,1.5100217]
[1737044074141,0.28085942,712.1,710.85,1.5100217]
[1737044074337,0.28085942,712.1,710.86,1.5100217]
[1737044074536,0.28085942,712.1,710.87,1.5100217]
[1737044074737,0.28085942,712.1,710.88,1.5100217]
[1737044074932,0.28085942,712.1,710.89,1.5100217]
[1737044075138,0.28085942,712.1,710.9,1.51001805]
[1737044075334,0.28085942,712.1,710.91,1.25166233]
[1737044075544,0.28085942,712.1,710.92,1.51001805]
[1737044075734,0.28085942,712.1,710.93,1.51001805]
[1737044075933,0.28085942,712.1,710.94,1.25166233]
[1737044076134,0.28085942,712.1,710.95,1.25166233]
[1737044076436,0.28085942,712.1,710.96,1.25166233]
[1737044076635,0.28085942,712.1,710.67,1.03662657]
[1737044076636,0.28085942,712.1,710.97,1.25166233]
[1737044076831,0.28085942,712.1,710.98,1.25166233]
[1737044077035,0.28085942,712.1,710.99,1.25166233]
[1737044077232,0.28085942,712.1,711.0,1.25166233]
[1737044077438,0.28085942,712.1,711.01,1.25166233]
[1737044077738,0.28085942,712.1,711.02,1.25166233]
[1737044077939,0.28085942,712.1,710.63,0.28144041]
[1737044077940,0.28085942,712.1,711.03,1.25166233]
[1737044078130,0.28085942,712.1,711.04,1.25166233]
[1737044078335,0.28085942,712.1,711.05,1.25166233]
[1737044078536,0.28085942,712.1,710.63,0.28144041]
[1737044078537,0.28085942,712.1,711.06,1.25166233]
[1737044078734,0.28085942,712.1,711.07,1.25166233]
[1737044078936,0.28085942,712.1,711.08,1.25166233]
[1737044079139,1.0477579,712.07,711.09,1.25166233]
[1737044079439,1.0477579,712.07,710.63,0.28144041]
[1737044079440,1.0477579,712.07,711.1,1.25166233]
[1737044079641,0.2808752,712.06,711.11,1.25166233]
[1737044079940,0.2808752,712.06,711.12,1.25166233]
[1737044080140,1.3286331,712.06,711.13,1.25166233]
[1737044080337,1.3286331,712.06,711.14,1.25166233]
[1737044080541,1.3286331,712.06,711.15,1.25166233]
[1737044080743,1.3286331,712.06,711.16,1.25166233]
[1737044080940,1.3286331,712.06,711.17,1.25166233]
[1737044081138,1.3286331,712.06,711.18,1.25166233]
[1737044081437,1.3286331,712.06,711.19,1.25166233]
[1737044081643,0.2808752,712.06,711.2,1.25166233]
[1737044081841,0.2808752,712.06,711.21,1.25166233]
[1737044082142,0.2808752,712.06,711.22,1.25166233]
[1737044082339,0.2808752,712.06,710.63,0.28144041]
[1737044082340,0.2808752,712.06,711.23,1.25166233]
[1737044082540,0.2808752,712.06,710.63,0.28144041]
[1737044082541,1.0477579,712.04,711.24,1.25166233]
[1737044082740,0.28088704,712.03,711.25,1.25166233]
[1737044082941,0.28088704,712.03,711.26,1.25166233]
[1737044083141,0.28088704,712.03,711.27,1.25166233]
[1737044083344,0.28088704,712.03,711.28,1.25166233]
[1737044083541,0.28088704,712.03,710.63,0.28144041]
[1737044083542,0.28088704,712.03,711.29,0.48138978]
[1737044083755,0.28088704,712.03,711.3,0.48138978]
[1737044083943,0.28088704,712.03,711.31,0.48138978]
[1737044084145,0.28088704,712.03,710.63,0.28144041]
[1737044084344,0.28088704,712.03,710.64,1.51366931]
[1737044084540,0.28088704,712.03,710.65,1.51366931]
[1737044084745,0.28088704,712.03,710.66,1.51366931]
[1737044084945,1.0477579,712.02,710.67,1.51366931]
[1737044085146,0.28089493,712.01,710.68,1.51366931]
[1737044085341,0.28089493,712.01,710.69,1.51366931]
[1737044085545,0.28089493,712.01,710.7,1.51366931]
[1737044085844,0.28089493,712.01,710.71,1.51366931]
[1737044086040,0.28089493,712.01,710.72,1.25525461]